bitfinex/quotes_ETHUSD_20250318
["timestamp","ask_amount","ask_price","bid_price","bid_amount"]
[1742336220438,7.53843942,1917.7,1917.6,0.30496077]
[1742336221064,12.75300942,1917.7,1917.6,0.30496077]
[1742336221446,13.53630942,1917.7,1917.6,0.30496077]
[1742336221647,13.53630942,1917.7,1917.4,5.21533]
[1742336221849,3.35297115,1917.5,1917.4,5.21533]
[1742336223084,3.35297115,1917.5,1917.4,10.867973]
[1742336227994,3.35297115,1917.5,1917.4,17.007973]
[1742336230292,3.35297115,1917.7,1917.5,8.21512]
[1742336230497,3.35297115,1917.7,1917.6,5.97035]
[1742336233306,3.35297115,1917.7,1917.6,5.21485]
[1742336233907,3.35297115,1917.7,1917.6,5.51969526]
[1742336237136,4.963,1918.0,1917.9,5.21403]
[1742336237427,8.32197115,1918.0,1917.9,5.51877435]
[1742336237582,3.35297115,1918.0,1917.9,5.51877435]
[1742336241509,9.72902827,1918.0,1917.9,0.30474435]
[1742336241901,14.94299827,1918.0,1917.6,5.21474]
[1742336242101,3.35297115,1917.7,1917.6,5.21474]
[1742336244821,3.35297115,1917.7,1917.4,3.0]
[1742336244822,5.21474,1917.6,1917.4,3.0]
[1742336245013,3.87444515,1917.5,1917.4,8.21529]
[1742336245209,3.35297115,1917.5,1917.4,8.21529]
[1742336246020,4.968,1917.8,1917.6,5.21467]
[1742336246914,4.968,1917.8,1917.7,5.21457]
[1742336247227,4.78091,1917.7,1917.6,5.21467]
[1742336247525,8.32097115,1917.8,1917.6,5.21467]
[1742336247705,9.23576827,1917.8,1917.6,5.21467]
[1742336248693,9.23576827,1917.8,1917.7,5.21457]
[1742336248932,9.23576827,1917.8,1917.7,5.51913136]
[1742336250027,0.33529712,1918.0,1917.8,5.21412]
[1742336250241,5.518681,1917.7,1917.6,5.2148]
[1742336250395,3.35297115,1917.7,1917.6,5.2148]
[1742336252541,4.17997115,1917.7,1917.5,5.21499]
[1742336252749,3.35297115,1917.6,1917.4,8.21537]
[1742336253049,5.793,1917.9,1917.7,5.21455]
[1742336253351,3.35297115,1917.8,1917.7,5.21455]
[1742336256652,3.35297115,1917.8,1917.6,10.42957]
[1742336256828,3.35297115,1917.8,1917.6,5.21474]
[1742336257155,3.35297115,1917.8,1917.7,5.21457]
[1742336258123,3.35297115,1917.8,1917.6,5.21474]
[1742336258319,4.37763837,1917.8,1917.6,5.21474]
[1742336258554,4.37763837,1917.8,1917.6,10.42949]
[1742336258723,3.35297115,1917.8,1917.6,10.42949]
[1742336259158,3.35297115,1917.8,1917.7,5.21457]
[1742336260927,8.31197115,1917.8,1917.7,5.21457]
[1742336261125,3.35297115,1917.8,1917.7,5.21457]
[1742336261435,3.35297115,1917.8,1917.7,5.98927]
[1742336261856,3.35297115,1917.8,1917.7,7.631143]
[1742336263761,3.35297115,1917.8,1917.7,10.631143]
[1742336263962,3.35297115,1917.8,1917.7,10.93589685]
[1742336267557,3.35297115,1917.8,1917.7,9.29402385]
[1742336267761,3.35297115,1917.8,1917.7,8.51932385]
[1742336274968,3.35297115,1917.8,1917.7,3.30475385]
[1742336275273,4.17727115,1917.8,1917.7,0.30475385]
[1742336275565,10.85213227,1917.8,1917.5,5.21493]
[1742336275770,7.49916112,1917.8,1917.7,0.3046287]
[1742336275947,7.49916112,1917.8,1917.6,0.30466234]
[1742336276148,4.948,1917.7,1917.5,8.2151]
[1742336276457,3.35297115,1917.6,1917.5,8.2151]
[1742336278969,3.35297115,1917.6,1917.5,8.51996925]
[1742336279469,8.56782115,1917.6,1917.5,0.30486925]
[1742336279772,4.17727115,1917.6,1917.5,0.30486925]
[1742336280251,7.92551171,1917.6,1917.5,0.30486925]
[1742336281041,7.10121171,1917.6,1917.5,0.30486925]
[1742336281439,3.35297115,1917.6,1917.5,8.51998925]
[1742336284569,7.09572077,1917.6,1917.5,3.30486925]
[1742336284773,3.74274962,1917.6,1917.5,8.51998925]
[1742336287272,3.35297115,1917.6,1917.5,8.51998925]
[1742336289991,3.35297115,1917.6,1917.5,9.89351418]
[1742336290195,3.35297115,1917.8,1917.7,5.21457]
[1742336290399,3.35297115,1917.8,1917.7,5.96737]
[1742336290562,3.35297115,1917.8,1917.7,6.27230674]
[1742336291591,3.35297115,1917.8,1917.7,9.27230674]
[1742336291791,3.35297115,1917.8,1917.7,10.72101041]
[1742336293412,4.12277115,1918.4,1918.1,5.21325]
[1742336293716,3.35297115,1918.2,1918.1,5.21325]
[1742336296615,21.322098,1917.7,1917.6,6.14]
[1742336296821,3.35297115,1917.7,1917.6,5.2146]
[1742336296984,3.35297115,1917.7,1917.6,6.25756]
[1742336297185,3.35297115,1917.7,1917.6,9.25756]
[1742336297817,3.35297115,1917.7,1917.6,6.25756]
[1742336297980,3.35297115,1917.7,1917.6,5.2146]
[1742336298304,3.35297115,1917.7,1917.6,8.2146]
[1742336304714,3.35297115,1917.7,1917.6,3.0]
[1742336304897,3.35297115,1917.7,1917.5,5.215]
[1742336307119,3.35297115,1917.7,1917.5,10.42993]
[1742336308922,3.35297115,1917.7,1917.6,0.28893763]
[1742336309496,3.80829859,1917.7,1917.6,0.28893763]
[1742336309694,7.16126974,1917.7,1917.6,0.28893763]
[1742336309895,5.21534,1917.5,1917.2,0.7907]
[1742336310095,3.35297115,1917.3,1917.1,10.432]
[1742336311642,3.35297115,1917.3,1917.2,5.21593]
[1742336312125,3.35297115,1917.3,1917.2,8.21593]
[1742336312291,3.35297115,1917.3,1917.2,10.867833]
[1742336313535,3.35297115,1917.3,1917.2,9.00303]
[1742336315251,3.35297115,1917.3,1916.8,12.40915923]
[1742336315252,2.934285,1917.2,1917.0,5.21635]
[1742336315533,3.35297115,1917.1,1917.0,10.43267]
[1742336315738,3.35297115,1917.1,1917.0,13.43267]
[1742336316639,3.35297115,1917.1,1917.0,8.21632]
[1742336317301,4.51096827,1917.1,1916.9,3.0]
[1742336317517,3.35297115,1917.1,1917.0,5.21648]
[1742336318496,3.35297115,1917.1,1916.9,5.21652]
[1742336318696,3.35297115,1917.1,1917.0,5.21648]
[1742336319200,3.35297115,1917.1,1917.0,9.03068]
[1742336320403,4.945,1917.3,1917.2,5.21593]
[1742336320604,8.29797115,1917.3,1917.2,8.21593]
[1742336323643,8.29797115,1917.3,1917.0,6.03063]
[1742336323824,3.35297115,1917.1,1917.0,8.21643]
[1742336325513,3.35297115,1917.1,1917.0,9.03063]
[1742336328359,3.35297115,1917.1,1917.0,8.21643]
[1742336339169,3.35297115,1917.1,1917.0,8.49596307]
[1742336341466,3.35297115,1917.1,1917.0,10.66382338]
[1742336343370,3.35297115,1917.1,1917.0,9.86722338]
[1742336343524,3.35297115,1917.1,1917.0,8.49596307]
[1742336357170,2.01276826,1917.1,1917.0,8.49601307]
[1742336361276,4.915,1917.4,1917.3,5.21545]
[1742336361477,6.92776826,1917.4,1917.3,5.21545]
[1742336361645,6.92776826,1917.4,1917.3,5.49492999]
[1742336362375,7.69809509,1917.4,1917.3,0.27947999]
[1742336363572,7.69809509,1917.4,1916.9,6.03124]
[1742336363573,0.7755,1917.1,1916.8,5.21685]
[1742336363748,2.01276826,1916.9,1916.8,8.21685]
[1742336365050,2.01276826,1916.9,1916.8,9.641703]
[1742336366360,2.01276826,1916.9,1916.8,8.21685]
[1742336369191,2.01276826,1916.9,1916.8,9.03135]
[1742336370160,2.01276826,1916.9,1916.8,8.21685]
[1742336371101,2.01276826,1916.9,1916.8,8.48674671]
[1742336375063,2.01276826,1916.9,1916.8,8.48674671]
[1742336377397,2.84186826,1916.9,1916.8,8.48674671]
[1742336378999,2.84186826,1916.9,1916.8,5.48674671]
[1742336384099,2.01276826,1916.9,1916.8,5.48674671]
[1742336389713,1.14541478,1917.3,1917.0,5.21648]
[1742336389888,2.01276826,1917.1,1917.0,9.01488]
[1742336395354,4.915,1917.4,1917.3,5.21566]
[1742336395503,6.92776826,1917.4,1917.3,5.21566]
[1742336398806,6.92776826,1917.4,1917.3,5.48535968]
[1742336399751,2.01276826,1917.4,1917.3,5.48535968]
[1742336400106,6.92776826,1917.4,1917.3,5.48535968]
[1742336400533,2.01276826,1917.4,1917.3,5.48535968]
[1742336400745,2.70554509,1917.4,1917.3,5.48535968]
[1742336400946,2.01276826,1917.4,1917.3,5.48535968]
[1742336408334,2.01276826,1917.4,1917.3,8.48535968]
[1742336409654,2.01276826,1917.4,1917.3,9.24155968]
[1742336410552,2.01276826,1917.5,1917.4,5.21539]
[1742336410924,2.01276826,1917.5,1917.4,5.48443359]
[1742336412056,2.01276826,1917.5,1917.4,6.93006295]
[1742336418354,4.914,1917.8,1917.7,5.21457]
[1742336418755,4.914,1917.8,1917.7,5.48337863]
[1742336419567,5.31562742,1917.8,1917.7,5.48337863]
[1742336419864,7.32839568,1917.8,1917.7,5.48337863]
[1742336421330,7.32839568,1917.8,1917.7,0.26880863]
[1742336422263,2.01276826,1917.8,1917.7,5.48337863]
[1742336422472,2.01276826,1917.8,1917.7,7.07466249]
[1742336423063,2.01276826,1917.8,1917.7,5.48337863]
[1742336425078,0.7709,1918.5,1917.8,0.8254]
[1742336425368,0.7709,1918.5,1918.4,5.21267]
[1742336425750,0.7709,1918.5,1918.4,5.4808125]
[1742336426287,2.78366826,1918.5,1918.4,5.4808125]
[1742336428369,7.69666826,1918.5,1918.4,5.4808125]
[1742336430136,8.09385767,1918.5,1918.4,5.4808125]
[1742336431968,7.69666826,1918.5,1918.4,5.4808125]
[1742336432671,8.08566809,1918.5,1918.4,5.5630811]
[1742336443021,8.08566809,1918.5,1918.4,0.3504111]
[1742336443159,8.292848,1918.2,1917.8,6.9043]
[1742336443359,2.01276826,1918.2,1918.1,5.21349]
[1742336443560,6.87926664,1918.5,1918.2,5.21305]
[1742336443870,0.68792666,1918.4,1918.3,0.33683391]
[1742336444796,2.70069492,1918.4,1918.3,0.33683391]
[1742336445316,2.70069492,1918.4,1918.3,5.54977391]
[1742336445794,4.71346318,1918.4,1918.3,5.54977391]
[1742336446163,4.71346318,1918.4,1918.3,0.33683391]
[1742336446579,4.71346318,1918.4,1918.3,5.54977391]
[1742336447190,2.70069492,1918.4,1918.3,5.54977391]
[1742336449095,2.01276826,1918.4,1918.3,5.54977391]
[1742336449303,6.92376826,1918.4,1918.3,5.54977391]
[1742336449868,2.01276826,1918.4,1918.3,5.54977391]
[1742336452495,4.02553652,1918.4,1918.3,5.54977391]
[1742336452699,4.02553652,1918.4,1918.3,0.33683391]
[1742336452997,5.03496015,1918.4,1918.3,0.33683391]
[1742336453369,5.03496015,1918.4,1918.3,5.54977391]
[1742336453890,5.03496015,1918.4,1918.3,0.33683391]
[1742336455003,5.03496015,1918.4,1918.3,5.54977391]
[1742336458031,4.02553652,1918.4,1918.3,5.54977391]
[1742336459110,2.01276826,1918.4,1918.3,5.54977391]
[1742336462397,2.01276826,1918.4,1918.3,6.38107391]
[1742336462879,2.01276826,1918.4,1918.3,9.38107391]
[1742336469582,2.01276826,1918.4,1918.3,6.38107391]
[1742336469777,2.01276826,1918.4,1918.3,10.5404853]
[1742336470376,2.01276826,1918.4,1918.3,9.7091853]
[1742336470574,2.01276826,1918.4,1918.3,8.54977391]
[1742336472216,4.02553652,1918.4,1918.3,0.33683391]
[1742336472413,4.82423652,1918.4,1918.3,0.33683391]
[1742336472581,4.82423652,1918.4,1918.2,8.21318]
[1742336472781,1.80236465,1918.4,1918.3,0.3251122]
[1742336472983,5.82790117,1918.4,1918.3,0.3251122]
[1742336473181,11.04057117,1918.4,1918.3,0.3251122]
[1742336473381,11.04057117,1918.4,1918.0,5.2136]
[1742336473588,7.01503465,1918.4,1918.3,0.3251122]
[1742336473915,11.92503465,1918.4,1918.3,0.32515049]
[1742336474114,11.92503465,1918.4,1918.1,5.21347]
[1742336474415,11.92503465,1918.4,1918.0,5.2136]
[1742336474416,4.02553652,1918.2,1918.0,5.2136]
[1742336474612,2.01276826,1918.1,1918.0,8.2136]
[1742336474833,2.01276826,1918.1,1918.0,3.0]
[1742336475045,2.81146826,1918.1,1918.0,3.0]
[1742336475881,2.81146826,1918.1,1918.0,8.21376]
[1742336476082,2.01276826,1918.1,1918.0,8.21376]
[1742336477215,6.01113,1918.5,1918.2,5.21314]
[1742336477413,2.01276826,1918.3,1918.2,5.21314]
[1742336478110,2.01276826,1918.3,1918.2,8.21314]
[1742336479312,3.35064828,1918.3,1918.2,8.21314]
[1742336481503,3.35064828,1918.3,1918.2,9.637172]
[1742336484011,0.7987,1918.7,1918.5,5.21218]
[1742336484217,8.26064828,1918.6,1918.5,5.21218]
[1742336484418,4.91,1918.6,1918.5,10.42438]
[1742336484639,8.26064828,1918.6,1918.5,10.42438]
[1742336485137,3.35064828,1918.6,1918.5,11.466818]
[1742336485642,3.35064828,1918.6,1918.5,15.224318]
[1742336488946,3.35064828,1918.6,1918.5,15.54937354]
[1742336491234,3.35064828,1918.6,1918.5,9.57967354]
[1742336491443,3.35064828,1918.6,1918.5,8.53723554]
[1742336492416,0.7971,1918.8,1918.7,5.21186]
[1742336492621,3.35064828,1918.8,1918.7,5.53683975]
[1742336492843,3.35064828,1918.8,1918.7,8.53683975]
[1742336494914,0.0123628,1919.1,1918.7,8.53683975]
[1742336494915,0.0123628,1919.1,1919.0,5.21104]
[1742336495119,3.36301108,1919.1,1919.0,5.21104]
[1742336495438,3.36301108,1919.1,1919.0,5.53499754]
[1742336501236,0.0123628,1919.1,1919.0,5.53499754]
[1742336509050,3.36301108,1919.1,1919.0,5.53499754]
[1742336509450,3.36301108,1919.1,1919.0,8.53499754]
[1742336515010,3.36301108,1919.1,1919.0,10.76537729]
[1742336515185,2.02072365,1919.1,1919.0,10.76537729]
[1742336518382,2.02072365,1919.1,1919.0,16.90537729]
[1742336519096,0.0123628,1919.1,1919.0,16.90537729]
[1742336519502,3.3593714,1919.1,1919.0,16.90537729]
[1742336520409,0.0123628,1919.1,1919.0,16.90537729]
[1742336521118,3.3593714,1919.1,1919.0,16.90537729]
[1742336521279,3.3593714,1919.1,1919.0,17.96024768]
[1742336523512,3.3593714,1919.1,1919.0,16.90537729]
[1742336527327,3.3593714,1919.1,1919.0,16.12607729]
[1742336527827,3.3593714,1919.1,1919.0,14.67499754]
[1742336527996,4.1310714,1919.1,1919.0,11.67499754]
[1742336528198,4.1310714,1919.1,1919.0,14.67499754]
[1742336529331,4.1310714,1919.1,1919.0,6.46395754]
[1742336529503,5.3695794,1919.1,1919.0,11.67499754]
[1742336530103,5.3695794,1919.1,1919.0,5.53499754]
[1742336530630,0.0123628,1919.1,1919.0,5.53499754]
[1742336533665,0.0123628,1919.1,1919.0,8.53499754]
[1742336543283,2.02092213,1919.1,1919.0,8.53499754]
[1742336546484,2.02092213,1919.1,1919.0,9.02214151]
[1742336547763,2.02092213,1919.1,1919.0,9.41186504]
[1742336549586,0.8127,1919.8,1919.3,0.8324]
[1742336549774,0.8127,1919.8,1919.7,5.20889]
[1742336550095,7.91055933,1920.0,1919.9,5.2086]
[1742336550096,8.72325933,1920.0,1919.9,5.2086]
[1742336550290,3.81725933,1920.0,1919.9,5.51984625]
[1742336550452,8.72325933,1920.0,1919.9,5.51984625]
[1742336550860,10.73181866,1920.0,1919.9,5.51984625]
[1742336551088,5.82581866,1920.0,1919.9,5.51984625]
[1742336551419,0.01,1920.9,1920.0,0.8324]
[1742336551575,2.00855933,1920.6,1920.5,5.20678]
[1742336551754,2.00855933,1920.6,1920.5,5.20697]
[1742336551956,2.00855933,1920.6,1920.5,5.51705884]
[1742336552358,4.01711866,1920.6,1920.5,5.51705884]
[1742336553295,3.34254616,1920.6,1920.5,5.51705884]
[1742336553464,3.34254616,1920.6,1920.5,8.51705884]
[1742336554594,4.45560078,1920.6,1920.5,0.31008884]
[1742336555094,4.45560078,1920.6,1920.5,0.3096618]
[1742336555394,4.45560078,1920.6,1920.3,13.41473]
[1742336555593,3.34254616,1920.4,1920.3,8.20729]
[1742336555968,3.34254616,1920.4,1920.3,3.0]
[1742336556385,3.34254616,1920.4,1920.3,8.20751]
[1742336557285,3.34254616,1920.4,1920.3,3.0]
[1742336557685,3.0,1920.3,1920.2,3.0]
[1742336557870,5.20752,1920.3,1919.9,5.98858]
[1742336558074,3.34254616,1920.0,1919.9,5.20839]
[1742336558378,3.34254616,1920.0,1919.9,9.250105]
[1742336558765,3.34254616,1920.0,1919.8,6.27784422]
[1742336559118,3.34254616,1920.0,1919.9,5.2086]
[1742336559800,3.34254616,1920.0,1919.8,5.20872]
[1742336560166,3.34254616,1920.0,1919.8,10.41747]
[1742336560366,3.34254616,1920.0,1919.9,5.2086]
[1742336561906,3.34254616,1920.0,1919.8,5.20872]
[1742336562402,3.34254616,1920.0,1919.8,10.41748]
[1742336562606,3.34254616,1920.0,1919.9,5.2086]
[1742336564000,3.34254616,1920.0,1919.9,5.4990288]
[1742336565391,3.34254616,1920.0,1919.9,7.87077968]
[1742336570214,3.34254616,1920.2,1920.1,5.20806]
[1742336570412,3.34254616,1920.2,1920.1,8.20806]
[1742336570751,3.34254616,1920.2,1920.1,8.49870598]
[1742336570920,3.34254616,1920.2,1920.1,9.86939758]
[1742336572293,3.34254616,1920.2,1920.1,8.49870598]
[1742336572786,3.34254616,1920.2,1920.1,3.29064598]
[1742336572985,3.34254616,1920.2,1920.1,8.49870598]
[1742336573610,3.34254616,1920.4,1920.3,3.0]
[1742336573786,3.34254616,1920.4,1920.3,8.20751]
[1742336573985,3.34254616,1920.4,1920.3,9.83961031]
[1742336579594,3.34254616,1920.4,1920.3,8.49808031]
[1742336589132,3.34254616,1920.4,1920.3,9.31278031]
[1742336589342,3.34254616,1920.5,1920.4,5.20722]
[1742336589632,3.34254616,1920.5,1920.4,5.49748799]
[1742336590237,18.0271,1920.9,1920.7,5.20643]
[1742336590400,0.7921,1920.9,1920.8,5.20616]
[1742336590605,3.35254616,1920.9,1920.8,5.49627673]
[1742336592458,3.35254616,1920.9,1920.8,6.5665364]
[1742336592650,0.01,1920.9,1920.8,10.3812364]
[1742336593335,6.2e-06,1921.0,1920.9,9.02059]
[1742336593664,3.34255236,1921.0,1920.9,11.48298491]
[1742336594334,6.2e-06,1921.0,1920.9,11.48298491]
[1742336594855,3.34255236,1921.0,1920.9,11.48298491]
[1742336596633,3.34255236,1921.0,1920.9,10.66828491]
[1742336596845,3.34255236,1921.0,1920.9,8.49557227]
[1742336604837,4.14895236,1921.0,1920.9,0.28968227]
[1742336605041,12.69711852,1921.0,1920.9,0.28968227]
[1742336605274,17.90299852,1921.0,1920.6,5.20655]
[1742336605571,3.34254616,1920.7,1920.6,5.20655]
[1742336605939,3.34254616,1920.7,1920.5,5.20694]
[1742336606141,4.14894616,1920.7,1920.4,5.20719]
[1742336606474,3.34254616,1920.5,1920.4,10.41426]
[1742336606962,3.34254616,1920.5,1920.4,5.20707]
[1742336608971,3.34254616,1920.5,1920.4,5.48621924]
[1742336611463,3.34254616,1920.5,1920.4,6.55558816]
[1742336612873,3.34254616,1920.5,1920.4,5.48621924]
[1742336613439,3.34254616,1920.5,1920.4,0.27914924]
[1742336613868,3.34254616,1920.5,1920.3,8.20736]
[1742336614074,3.34254616,1920.5,1920.4,0.27914924]
[1742336614275,3.34254616,1920.5,1920.4,5.48638924]
[1742336616655,3.34254616,1920.5,1920.4,0.27914924]
[1742336616974,3.34254616,1920.5,1920.3,8.20736]
[1742336617157,3.34254616,1920.5,1920.4,0.27951749]
[1742336617357,8.54960616,1920.5,1920.3,3.0]
[1742336617557,3.34254616,1920.5,1920.4,0.27951749]
[1742336617757,3.34254616,1920.5,1920.3,3.0]
[1742336617971,3.34254616,1920.5,1920.4,0.27951749]
[1742336618180,3.34254616,1920.5,1920.3,8.20749]
[1742336618390,3.34254616,1920.5,1920.4,0.27951749]
[1742336618747,3.34254616,1920.5,1920.3,3.0]
[1742336618948,3.34254616,1920.5,1920.4,0.27951749]
[1742336619192,3.34254616,1920.5,1920.3,3.0]
[1742336619486,13.46365616,1920.5,1920.4,0.27951749]
[1742336619677,14.88447342,1920.5,1920.4,0.27951749]
[1742336619977,14.88447342,1920.5,1920.3,3.0]
[1742336620160,14.23565616,1920.5,1920.4,0.27994243]
[1742336620360,14.23565616,1920.5,1920.3,3.0]
[1742336620574,14.23565616,1920.5,1920.4,0.27994243]
[1742336620804,8.25654616,1920.5,1920.3,3.0]
[1742336620976,3.34254616,1920.5,1920.4,5.47737144]
[1742336623693,22.43436,1921.1,1920.7,5.20643]
[1742336623694,0.8317062,1921.0,1920.7,5.20643]
[1742336623982,3.34254616,1920.8,1920.7,10.41276]
[1742336624275,3.34254616,1920.8,1920.7,5.20633]
[1742336625474,3.34254616,1920.8,1920.7,6.247628]
[1742336627596,3.34254616,1920.8,1920.7,9.247628]
[1742336636298,3.34254616,1920.8,1920.7,8.20643]
[1742336636878,3.34254616,1920.8,1920.7,3.0]
[1742336637079,3.34254616,1920.8,1920.7,8.20643]
[1742336638779,3.34254616,1920.8,1920.7,8.47590325]
[1742336648878,6.2e-06,1921.0,1920.9,5.20589]
[1742336649210,3.34255236,1921.0,1920.9,5.47526886]
[1742336650410,6.2e-06,1921.0,1920.9,8.47526886]
[1742336650882,6.2e-06,1921.0,1920.9,15.38096886]
[1742336651079,6.2e-06,1921.0,1920.9,17.52442878]
[1742336652011,6.2e-06,1921.0,1920.9,17.91293243]
[1742336654483,6.2e-06,1921.0,1920.9,18.96357988]
[1742336656111,6.2e-06,1921.0,1920.9,18.57507623]
[1742336659616,3.34255236,1921.0,1920.9,18.57507623]
[1742336660847,4.12355236,1921.0,1920.9,5.47526886]
[1742336661199,4.12355236,1921.0,1920.9,8.47526886]
[1742336662516,3.34255236,1921.0,1920.9,8.47526886]
[1742336662820,6.2e-06,1921.0,1920.9,9.25046886]
[1742336663022,6.2e-06,1921.0,1920.9,11.18641975]
[1742336665029,6.2e-06,1921.0,1920.9,17.32641975]
[1742336665330,6.2e-06,1921.0,1920.9,18.37450755]
[1742336666605,4.901,1921.7,1921.2,5.98013]
[1742336666606,3.34254616,1921.4,1921.2,5.98013]
[1742336666809,3.34254616,1921.4,1921.3,14.27641817]
[1742336672605,3.34254616,1921.4,1921.3,15.29506765]
[1742336673114,3.34254616,1921.6,1921.5,5.20426]
[1742336673519,3.34254616,1921.6,1921.5,5.47245453]
[1742336673900,3.34254616,1921.6,1921.5,8.47245453]
[1742336674106,3.34254616,1921.6,1921.5,9.84015298]
[1742336674700,4.901,1922.1,1921.5,9.84015298]
[1742336674701,0.25894938,1922.2,1921.8,3.7938]
[1742336674903,0.015,1922.3,1922.2,8.99617]
[1742336675134,1e-05,1922.5,1922.4,8.99563]
[1742336675434,1e-05,1922.5,1922.4,10.16252223]
[1742336675934,1e-05,1922.5,1922.4,9.36872223]
[1742336676136,1e-05,1922.5,1922.4,8.46915923]
[1742336676503,3.34255616,1922.5,1922.4,8.46915923]
[1742336676710,0.005,1922.8,1922.7,5.20101]
[1742336676920,3.34754616,1922.8,1922.7,5.46750402]
[1742336677322,3.6936564,1922.8,1922.7,5.46750402]
[1742336677506,3.6936564,1922.8,1922.7,0.26649402]
[1742336677708,4.4850564,1922.8,1922.6,5.20113]
[1742336677908,9.4330564,1922.8,1922.7,0.26630659]
[1742336678137,9.4330564,1922.8,1922.5,11.34143]
[1742336678440,3.34254616,1922.6,1922.5,11.34143]
[1742336678654,3.34254616,1922.6,1922.4,5.20171]
[1742336678835,3.34254616,1922.6,1922.4,10.40339]
[1742336679040,3.34254616,1922.6,1922.4,10.40337]
[1742336679242,3.34254616,1922.6,1922.5,5.20156]
[1742336679462,3.77113134,1922.6,1922.5,5.20156]
[1742336679908,3.77113134,1922.6,1922.4,5.20168]
[1742336680108,0.7914,1922.5,1922.4,5.20168]
[1742336680805,0.7914,1922.5,1922.3,5.20195]
[1742336681009,13.49937616,1922.4,1921.8,0.7938]
[1742336681210,0.7914,1922.2,1922.0,5.20287]
[1742336681541,0.7914,1922.2,1922.0,5.2028]
[1742336682212,0.7914,1922.2,1922.0,5.20277]
[1742336682409,0.7914,1922.2,1922.0,10.40553]
[1742336682609,5.99383,1922.2,1921.9,5.20316]
[1742336682804,3.34254616,1922.0,1921.9,5.20316]
[1742336683841,3.34254616,1922.0,1921.9,5.44998445]
[1742336685554,3.34254616,1922.0,1921.9,0.24682445]
[1742336685912,3.34254616,1922.0,1921.8,5.20334]
[1742336686144,3.34254616,1922.0,1921.9,0.24682445]
[1742336686314,3.96046743,1922.0,1921.9,0.24682445]
[1742336686511,3.96046743,1922.0,1921.8,5.20331]
[1742336686747,3.96046743,1922.0,1921.9,0.24714325]
[1742336687165,3.96046743,1922.0,1921.8,5.20328]
[1742336687365,3.34254616,1922.0,1921.9,5.45032325]
[1742336688331,6.41389461,1922.2,1922.1,5.20264]
[1742336688553,2.947634,1922.1,1922.0,5.2028]
[1742336688837,9.08494616,1922.2,1922.0,5.2028]
[1742336689373,14.28731616,1922.2,1921.8,5.20339]
[1742336689556,3.34254616,1922.0,1921.8,10.40671]
[1742336689763,3.34254616,1922.0,1921.9,5.20318]
[1742336691335,3.34254616,1922.0,1921.8,10.40667]
[1742336691968,3.34254616,1922.0,1921.9,5.20318]
[1742336698863,3.34254616,1922.0,1921.9,0.24792136]
[1742336699184,3.67680078,1922.0,1921.8,10.40663]
[1742336699381,3.67680078,1922.0,1921.9,0.24792136]
[1742336699736,3.67680078,1922.0,1921.8,10.40662]
[1742336700043,3.34254616,1922.0,1921.9,0.24792136]
[1742336700241,3.34254616,1922.0,1921.9,5.20318]
[1742336700578,3.34254616,1922.0,1921.9,0.24792136]
[1742336700966,3.34254616,1922.0,1921.9,5.20318]
[1742336701171,3.34254616,1922.0,1921.9,5.45110136]
[1742336701678,3.34254616,1922.0,1921.9,0.24792136]
[1742336701842,3.34254616,1922.0,1921.8,10.40662]
[1742336702049,3.34254616,1922.0,1921.9,0.24798704]
[1742336702286,3.34254616,1922.0,1921.8,10.40662]
[1742336702483,3.34254616,1922.0,1921.9,0.24798704]
[1742336702819,3.34254616,1922.0,1921.8,10.40662]
[1742336702991,3.34254616,1922.0,1921.9,0.24798704]
[1742336703320,3.34254616,1922.0,1921.8,10.40662]
[1742336703504,3.34254616,1922.0,1921.9,0.24798704]
[1742336703703,3.34254616,1922.0,1921.8,10.40662]
[1742336703901,3.34254616,1922.0,1921.9,0.24798704]
[1742336704108,3.34254616,1922.0,1921.8,10.40661]
[1742336704304,3.34254616,1922.0,1921.9,0.24798704]
[1742336704510,3.34254616,1922.0,1921.8,10.40661]
[1742336704710,3.34254616,1922.0,1921.9,0.24798704]
[1742336704909,3.34254616,1922.0,1921.8,5.2033]
[1742336705220,3.34254616,1922.0,1921.9,0.24798704]
[1742336705628,3.34254616,1922.0,1921.8,10.40654]
[1742336705926,3.34254616,1922.0,1921.9,0.24798704]
[1742336706129,3.34254616,1922.0,1921.8,10.40654]
[1742336706426,3.34254616,1922.0,1921.9,0.24798704]
[1742336707127,3.34254616,1922.0,1921.8,10.40658]
[1742336707285,3.34254616,1922.0,1921.9,0.24798704]
[1742336707490,3.34254616,1922.0,1921.8,10.40656]
[1742336707691,3.34254616,1922.0,1921.9,0.24798704]
[1742336707887,3.34254616,1922.0,1921.8,5.20324]
[1742336708086,3.34254616,1922.0,1921.9,0.24798704]
[1742336708391,3.34254616,1922.0,1921.3,6.57661364]
[1742336708392,18.729861,1921.5,1921.3,1.02860064]
[1742336708592,4.933,1921.6,1921.5,5.20426]
[1742336709792,8.27554616,1921.6,1921.5,5.20426]
[1742336711820,8.53978118,1921.6,1921.4,10.40884]
[1742336712020,8.53978118,1921.6,1921.5,5.20426]
[1742336712383,4.933,1921.6,1921.5,6.01216]
[1742336712587,8.27554616,1921.6,1921.5,6.01216]
[1742336712797,8.27554616,1921.6,1921.5,7.65426]
[1742336712987,3.34254616,1921.6,1921.5,7.65426]
[1742336713386,3.34254616,1921.6,1921.5,6.01216]
[1742336713920,0.8048,1922.4,1921.9,5.20318]
[1742336714227,4.53961506,1922.4,1922.0,5.40791036]
[1742336714422,4.53961506,1922.4,1922.0,0.20512036]
[1742336714623,9.74156506,1922.4,1922.0,0.20512036]
[1742336714820,9.74156506,1922.4,1921.8,6.01118]
[1742336714991,11.23589257,1922.4,1922.1,0.20463449]
[1742336715306,6.03394257,1922.4,1922.2,0.20459673]
[1742336715512,6.0069,1922.3,1921.8,5.20345]
[1742336715824,3.34254616,1922.0,1921.9,0.20460735]
[1742336716120,3.34254616,1922.0,1921.7,3.0]
[1742336716422,3.34254616,1921.8,1921.6,0.8079]
[1742336716624,3.34254616,1921.8,1921.6,5.20387]
[1742336716794,3.34254616,1921.8,1921.7,5.20372]
[1742336718419,3.34254616,1921.8,1921.6,5.20391]
[1742336718805,3.34254616,1921.8,1921.6,5.20385]
[1742336719010,4.941,1922.1,1921.8,5.20331]
[1742336719198,3.34254616,1921.9,1921.8,5.20331]
[1742336719716,3.34254616,1921.9,1921.8,5.20345]
[1742336720731,4.941,1922.1,1921.9,5.20307]
[1742336720905,3.34254616,1922.0,1921.8,6.326896]
[1742336721095,3.34254616,1922.0,1921.7,6.0319]
[1742336721298,3.34254616,1921.8,1921.7,6.0319]
[1742336722813,5.2022,1922.3,1921.8,5.20341]